bitfinex-derivatives/quotes_ETHF0:USTF0_20250416
["timestamp","ask_amount","ask_price","bid_price","bid_amount"]
[1744812773663,14.82594,1577.6,1577.5,8.3901298]
[1744812774062,14.94250025,1577.6,1577.5,8.3901298]
[1744812774366,1.26793,1577.5,1577.4,6.85057485]
[1744812774562,1.26801,1577.4,1577.3,15.0391111]
[1744812774758,7.35158497,1577.4,1577.3,13.6845311]
[1744812774961,12.35158497,1577.4,1577.3,10.6980711]
[1744812775159,12.23501927,1577.4,1577.3,7.6139711]
[1744812775467,12.35159869,1577.4,1577.3,7.6139711]
[1744812775667,12.35159869,1577.4,1577.2,0.00952229]
[1744812775668,1.26809,1577.3,1577.2,0.00952229]
[1744812775869,4.02729927,1577.3,1577.2,0.00952229]
[1744812776063,9.02729927,1577.3,1577.2,0.00952229]
[1744812776263,4.02729927,1577.3,1577.2,0.00952229]
[1744812776569,9.02729927,1577.3,1577.2,0.00952229]
[1744812776772,9.14388081,1577.3,1577.2,0.00952229]
[1744812777568,9.02729927,1577.3,1577.2,0.00952229]
[1744812777765,11.97198011,1577.3,1577.2,2.29e-06]
[1744812777962,3.17122,1576.9,1576.4,1.26879]
[1744812778164,1.26873,1576.6,1576.5,9.21]
[1744812778363,1.26873,1576.6,1576.5,2.8764]
[1744812778565,3.2078,1576.9,1576.5,9.21]
[1744812778770,1.26858,1576.7,1576.6,6.3336]
[1744812779264,2.95262229,1576.8,1576.6,6.3336]
[1744812779462,4.22111229,1576.8,1576.7,2.9468]
[1744812780366,0.00952229,1576.8,1576.7,10.54897]
[1744812781671,0.00952229,1576.8,1576.7,9.2804]
[1744812781864,1.27801229,1576.8,1576.7,2.9468]
[1744812782474,1.26865,1576.6,1576.5,0.00952229]
[1744812782673,1.26865,1576.6,1576.5,6.34312229]
[1744812783175,4.04225,1576.6,1576.5,6.34312229]
[1744812783468,0.00952229,1576.8,1576.5,9.51491229]
[1744812783775,0.00952229,1576.8,1576.7,1.26857]
[1744812784274,0.00952229,1576.8,1576.7,10.30187]
[1744812785978,1.27801229,1576.8,1576.7,9.0333]
[1744812786173,0.00952229,1576.8,1576.7,10.30187]
[1744812786879,1.27801229,1576.8,1576.7,10.30187]
[1744812787270,0.00952229,1576.8,1576.7,10.30187]
[1744812788578,0.00952229,1576.8,1576.7,3.96827]
[1744812788780,0.00952229,1576.8,1576.7,10.30187]
[1744812789275,0.00952229,1576.8,1576.7,9.0333]
[1744812789476,1.27801229,1576.8,1576.7,9.0333]
[1744812789979,4.48581229,1576.8,1576.7,2.6997]
[1744812790178,1.26865,1576.6,1576.5,0.00952229]
[1744812790377,1.26865,1576.6,1576.5,2.94772229]
[1744812791379,6.26865,1576.6,1576.5,2.94772229]
[1744812791585,9.47645,1576.6,1576.5,0.00952229]
[1744812791883,12.21195,1576.6,1576.5,0.00952229]
[1744812792076,9.00415,1576.6,1576.5,0.00952229]
[1744812792283,7.21195,1576.6,1576.5,0.00952229]
[1744812793177,12.21195,1576.6,1576.5,0.00952229]
[1744812793685,1.26865,1576.6,1576.5,0.00952229]
[1744812793886,4.47645,1576.6,1576.5,0.00952229]
[1744812794287,7.39175,1576.6,1576.5,0.00952229]
[1744812795788,4.47645,1576.6,1576.5,0.00952229]
[1744812796090,1.26865,1576.6,1576.5,0.00952229]
[1744812798894,4.47645,1576.6,1576.5,0.00952229]
[1744812799390,7.19085,1576.6,1576.5,0.00952229]
[1744812799594,7.19085,1576.6,1576.5,2.29e-06]
[1744812799595,14.95005927,1576.6,1576.5,2.29e-06]
[1744812799784,1.26897,1576.2,1576.1,2.8706]
[1744812799979,4.47677,1576.2,1576.1,2.8706]
[1744812800186,1.26897,1576.2,1576.1,9.2042]
[1744812800383,1.26897,1576.2,1576.1,10.47325]
[1744812800584,1.26897,1576.2,1576.1,9.2042]
[1744812801188,1.26897,1576.2,1576.1,2.8706]
[1744812801390,1.26897,1576.2,1576.1,9.2042]
[1744812801689,1.26897,1576.2,1576.1,12.1246]
[1744812801891,4.02817927,1576.3,1576.1,13.39365]
[1744812802091,4.02817927,1576.3,1576.2,9.1814]
[1744812802390,1.26897,1576.3,1576.2,9.1814]
[1744812802590,0.00952229,1576.8,1576.2,20.56163]
[1744812802789,0.00952229,1576.8,1576.5,1.26871]
[1744812802986,1.26868,1576.6,1576.4,1.26875]
[1744812803189,1.26868,1576.6,1576.5,2.9204]
[1744812803387,1.26868,1576.6,1576.5,9.254]
[1744812807593,1.26868,1576.6,1576.5,6.3336]
[1744812809693,1.26886,1576.4,1576.2,4.15602]
[1744812809891,1.26886,1576.4,1576.3,6.3336]
[1744812810494,1.26897,1576.2,1576.1,0.6344]
[1744812810797,1.26905,1576.1,1576.0,0.00634823]
[1744812810985,1.26905,1576.1,1576.0,6.33994823]
[1744812812199,1.26905,1576.1,1576.0,6.97444823]
[1744812814196,3.17225,1576.3,1576.0,8.24357823]
[1744812814398,1.26905,1576.1,1576.0,4.63987823]
[1744812814603,1.26905,1576.1,1576.0,3.37074823]
[1744812814807,1.26905,1576.1,1576.0,9.70434823]
[1744812815697,1.26905,1576.1,1576.0,12.64444823]
[1744812816399,1.26905,1576.1,1576.0,13.91357823]
[1744812816603,1.26905,1576.1,1576.0,12.64444823]
[1744812817507,1.26905,1576.1,1576.0,13.91357823]
[1744812817706,1.26896,1576.3,1576.1,1.26904]
[1744812817905,1.26882,1576.4,1576.3,1.26887]
[1744812818092,1.26882,1576.4,1576.2,10.54262]
[1744812818298,1.26882,1576.4,1576.3,6.3336]
[1744812818700,1.26889,1576.3,1576.2,2.9401]
[1744812819001,1.26889,1576.3,1576.2,9.2737]
[1744812822903,4.47669,1576.3,1576.2,9.2737]
[1744812823101,1.26905,1576.1,1576.0,0.64084823]
[1744812823299,4.47685,1576.1,1576.0,0.64084823]
[1744812823496,1.26905,1576.1,1576.0,0.64084823]
[1744812823806,3.97935,1576.1,1576.0,0.64084823]
[1744812824107,7.18715,1576.1,1576.0,0.64084823]
[1744812824305,12.18715,1576.1,1576.0,8.23e-06]
[1744812824509,1.26937,1575.7,1575.6,2.77]
[1744812824701,4.47717,1575.7,1575.6,2.77]
[1744812824903,6.38133,1575.7,1575.3,38.92292563]
[1744812825107,5.87588,1575.6,1575.4,9.1036]
[1744812825309,1.26953,1575.5,1575.4,9.1036]
[1744812825605,1.26953,1575.5,1575.4,2.77]
[1744812825808,3.18305229,1575.7,1575.4,9.1036]
[1744812825809,0.00952229,1575.7,1575.4,9.1036]
[1744812826002,1.26947,1575.6,1575.5,9.2401]
[1744812826407,1.26947,1575.6,1575.5,6.3336]
[1744812827109,3.97157,1575.6,1575.5,6.3336]
[1744812828008,1.26947,1575.6,1575.5,6.3336]
[1744812828706,6.29925653,1575.7,1575.5,11.3336]
[1744812828905,7.56869653,1575.7,1575.6,9.156]
[1744812831410,6.29925653,1575.7,1575.6,15.42545]
[1744812831815,0.00952229,1575.7,1575.6,15.42545]
[1744812832005,1.27889229,1575.7,1575.6,9.156]
[1744812836707,1.27889229,1575.7,1575.6,10.42545]
[1744812836908,1.27889229,1575.7,1575.6,9.156]
[1744812837211,0.00952229,1575.7,1575.6,10.42545]
[1744812837416,1.27889229,1575.7,1575.6,9.156]
[1744812838409,1.27889229,1575.7,1575.6,10.42545]
[1744812838610,1.27889229,1575.7,1575.6,9.156]
[1744812839306,1.27889229,1575.7,1575.6,2.8224]
[1744812839510,1.26962,1575.4,1575.3,2.7339]
[1744812839809,1.26962,1575.4,1575.3,9.0675]
[1744812840017,1.26986,1575.1,1574.9,7.2836]
[1744812840207,3.17406,1575.4,1575.0,10.37174]
[1744812840413,1.26984,1575.2,1575.0,10.37174]
[1744812840712,1.26986,1575.1,1575.0,2.7682]
[1744812840912,1.26986,1575.1,1575.0,5.5587]
[1744812841213,1.26986,1575.1,1575.0,11.8923]
[1744812841608,1.2701,1574.8,1574.7,0.635]
[1744812841819,1.27018,1574.7,1574.6,15.38107944]
[1744812842223,1.27013,1574.8,1574.6,22.98489944]
[1744812842520,1.27013,1574.8,1574.7,6.3336]
[1744812842914,1.2701,1574.8,1574.7,9.2396]
[1744812843516,0.00952229,1574.9,1574.7,9.2396]
[1744812843820,1.27960229,1574.9,1574.8,6.3336]
[1744812844018,0.00952229,1574.9,1574.8,7.6037]
[1744812844324,1.27954229,1574.9,1574.8,6.3336]
[1744812845507,0.00952229,1574.9,1574.8,7.6037]
[1744812845716,1.27954229,1574.9,1574.8,6.3336]
[1744812846616,1.2701,1574.8,1574.7,2.906]
[1744812846914,1.2701,1574.8,1574.7,9.2396]
[1744812848821,4.4779,1574.8,1574.7,2.906]
[1744812849612,4.4779,1574.8,1574.7,9.2396]
[1744812851325,1.2701,1574.8,1574.7,9.2396]
[1744812853627,1.2701,1574.8,1574.7,10.50978]
[1744812853826,1.2701,1574.8,1574.7,9.2396]
[1744812855723,0.00952229,1574.9,1574.7,14.2396]
[1744812855921,1.27954229,1574.9,1574.8,9.0497]
[1744812856327,1.27954229,1574.9,1574.8,49.8497]
[1744812856930,1.27954229,1574.9,1574.8,9.0497]
[1744812857624,4.11284229,1574.9,1574.8,9.0497]
[1744812859129,4.11284229,1574.9,1574.8,6.3336]
[1744812860330,13.77718156,1574.9,1574.6,0.635]
[1744812860525,4.47798,1574.7,1574.6,0.635]
[1744812860725,1.27034,1574.5,1574.4,2.6608]
[1744812861229,1.27034,1574.5,1574.4,8.9944]
[1744812861629,1.27034,1574.5,1574.4,9.6295]
[1744812862333,1.27026,1574.7,1574.5,1.27031]
[1744812862527,1.27026,1574.7,1574.6,5.5196]
[1744812862837,1.27026,1574.7,1574.6,11.8532]
[1744812863526,0.00952229,1574.9,1574.6,11.8532]
[1744812863726,1.27014,1574.8,1574.7,9.0458]
[1744812864326,0.00952229,1574.9,1574.8,1.2701]
[1744812864522,0.00952229,1574.9,1574.8,9.0671]
[1744812864727,1.27954229,1574.9,1574.8,10.3372]
[1744812865335,0.00952229,1574.9,1574.8,10.3372]
[1744812866236,12.67179424,1575.3,1574.8,14.0671]
[1744812866425,12.67179424,1575.3,1574.7,3.2078]
[1744812866426,1.26999,1575.0,1574.9,11.8728]
[1744812866625,1.26999,1575.0,1574.9,5.5392]
[1744812866821,1.26999,1575.0,1574.9,11.8728]
[1744812867631,1.26999,1575.0,1574.9,9.0671]
[1744812868036,4.14209,1575.0,1574.9,9.0671]
[1744812868429,9.14209,1575.0,1574.9,2.7335]
[1744812868737,9.14209,1575.0,1574.8,0.00952228]
[1744812868738,1.27002,1574.9,1574.8,0.00952228]
[1744812868932,4.14212,1574.9,1574.8,6.34312228]
[1744812869430,1.27002,1574.9,1574.8,6.34312228]
[1744812870936,4.47782,1574.9,1574.8,0.00952228]
[1744812871938,1.27002,1574.9,1574.8,6.34312228]
[1744812872934,1.27002,1574.9,1574.8,9.10482228]
[1744812875144,12.27242,1574.9,1574.8,0.00952228]
[1744812875335,15.14838741,1574.9,1574.8,2.28e-06]
[1744812875843,1.27034,1574.5,1574.4,0.6351]
[1744812876137,4.47814,1574.5,1574.4,0.6351]
[1744812876338,4.47814,1574.5,1574.4,6.9687]
[1744812879250,4.47814,1574.5,1574.4,0.6351]
[1744812880747,4.47814,1574.5,1574.4,6.9687]
[1744812880955,1.27034,1574.5,1574.4,6.9687]
[1744812883658,1.27032,1574.6,1574.4,6.9687]
[1744812883858,1.27032,1574.6,1574.5,9.1577]
[1744812884956,1.27034,1574.5,1574.4,0.6351]
[1744812885158,4.14104,1574.5,1574.4,6.9687]
[1744812885661,7.34884,1574.5,1574.4,6.9687]
[1744812886763,4.47814,1574.5,1574.4,6.9687]
[1744812888261,1.27034,1574.5,1574.4,6.9687]
[1744812888560,7.56007424,1574.5,1574.4,6.9687]
[1744812889564,10.76787424,1574.5,1574.4,0.6351]
[1744812889866,13.43247424,1574.5,1574.4,0.6351]
[1744812891666,10.76787424,1574.5,1574.4,0.6351]
[1744812892653,12.86445232,1574.5,1574.4,6.9687]
[1744812893357,12.86445232,1574.5,1574.4,0.6351]
[1744812893557,15.45695232,1574.5,1574.4,0.6351]
[1744812894266,12.86445232,1574.5,1574.4,0.6351]
[1744812895867,12.86445232,1574.5,1574.4,6.9687]
[1744812897864,12.86445232,1574.5,1574.4,0.6351]
[1744812898068,15.49825232,1574.5,1574.4,0.6351]
[1744812900270,12.86445232,1574.5,1574.4,0.6351]
[1744812900566,8.38631232,1574.5,1574.4,6.9687]
[1744812900773,10.52492466,1574.6,1574.5,1.27034]
[1744812900965,12.53847153,1574.8,1574.7,1.27018]
[1744812901265,12.53847153,1574.8,1574.7,9.47798]
[1744812901469,12.53847153,1574.8,1574.7,52.1336]
[1744812901470,13.80857153,1574.8,1574.7,52.1336]
[1744812902071,12.53847153,1574.8,1574.7,54.03878]
[1744812902272,12.53847153,1574.8,1574.7,16.44658]
[1744812902773,12.53847153,1574.8,1574.7,15.1764]
[1744812903074,12.53847153,1574.8,1574.7,16.44658]
[1744812903376,8.21897153,1574.8,1574.7,16.44658]
[1744812903670,3.89947153,1574.8,1574.7,16.44658]
[1744812904072,3.89947153,1574.8,1574.7,21.83668]
[1744812904372,0.00952229,1575.1,1574.8,1.27005]
[1744812904575,1.26994,1575.0,1574.9,2.6702]
[1744812904873,1.26994,1575.0,1574.9,9.0038]
[1744812906073,1.26994,1575.0,1574.9,10.27382]
[1744812906274,1.26994,1575.0,1574.9,9.0038]
[1744812908676,1.27943229,1575.1,1574.9,10.27382]
[1744812908869,1.27943229,1575.1,1575.0,9.1545]
[1744812909170,0.00952229,1575.1,1575.0,13.14854]
[1744812909369,0.00952229,1575.1,1575.0,18.14854]
[1744812911668,4.47703,1575.9,1575.7,1.2693]
[1744812911868,4.47703,1575.9,1575.5,3.17378]
[1744812911869,1.26923,1575.9,1575.8,9.1515]
[1744812912071,1.26923,1575.9,1575.8,2.8179]
[1744812912270,1.26923,1575.9,1575.8,9.1515]
[1744812912872,1.26929,1575.8,1575.7,0.00952229]
[1744812913073,3.99039,1575.8,1575.7,0.00952229]
[1744812913275,1.26953,1575.5,1575.4,2.8464]
[1744812913778,1.26953,1575.5,1575.4,9.18]
[1744812914081,2.7211,1575.6,1575.4,9.18]
[1744812914278,3.2078,1575.7,1575.5,9.18]
[1744812914478,1.26937,1575.7,1575.6,2.8464]
[1744812914976,1.26937,1575.7,1575.6,9.18]
[1744812916179,4.20737,1575.7,1575.6,9.18]
[1744812916675,4.47714,1575.8,1575.6,9.18]
[1744812916881,4.47709,1575.8,1575.7,9.4887]
[1744812917081,7.41509,1575.8,1575.7,3.1551]
[1744812917377,4.20729,1575.8,1575.7,9.4887]
[1744812918575,1.26929,1575.8,1575.7,9.4887]
[1744812919482,1.26929,1575.8,1575.7,10.1233]
[1744812921481,0.00952229,1576.0,1575.9,1.26921]
[1744812921677,0.00952229,1576.0,1575.9,4.47701]
[1744812921878,1.27865229,1576.0,1575.9,6.3336]
[1744812922078,0.00952229,1576.0,1575.9,10.62121]
[1744812922776,1.27865229,1576.0,1575.9,9.352]
[1744812923275,0.00952229,1576.0,1575.9,9.352]
[1744812923785,1.27865229,1576.0,1575.9,9.352]
[1744812924088,1.26929,1575.8,1575.7,0.6346]
[1744812924285,4.47709,1575.8,1575.7,0.6346]
[1744812924485,9.47709,1575.8,1575.7,0.6346]
[1744812924688,15.72969,1575.8,1575.7,0.6346]
[1744812925283,7.52189,1575.8,1575.7,6.9682]
[1744812926078,1.26929,1575.9,1575.7,11.9682]
[1744812926385,1.26929,1575.9,1575.8,9.2035]
[1744812926683,1.26929,1575.9,1575.8,6.3336]
[1744812926885,4.35659,1575.9,1575.8,6.3336]
[1744812927283,4.35659,1575.9,1575.8,9.2035]
[1744812928282,4.35659,1575.9,1575.7,0.6346]
[1744812928283,1.26929,1575.8,1575.7,0.6346]
[1744812928488,7.19309,1575.8,1575.7,6.9682]
[1744812929179,10.40089,1575.8,1575.7,6.9682]
[1744812932485,1.2697,1575.3,1575.2,40.8]
[1744812932693,1.2697,1575.3,1575.2,50.2051]
[1744812933189,2.9296,1575.4,1575.2,50.2051]
[1744812933190,4.19928,1575.4,1575.2,51.47487]
[1744812933386,4.19928,1575.4,1575.3,9.4051]
[1744812933686,4.19928,1575.4,1575.3,3.0715]
[1744812933887,7.40708,1575.4,1575.3,6.3336]
[1744812935488,1.26978,1575.2,1575.1,2.9463]
[1744812935883,1.26978,1575.2,1575.1,9.2799]
[1744812936191,4.37478,1575.2,1575.1,9.2799]
[1744812936788,1.26978,1575.2,1575.1,9.2799]
[1744812938291,1.26971,1575.3,1575.1,10.54973]
[1744812938493,3.2078,1575.4,1575.3,1.2697]
[1744812938791,4.47729,1575.6,1575.2,15.41395]
[1744812938993,1.26954,1575.5,1575.3,9.3083]
[1744812939187,1.26954,1575.5,1575.4,5.8892]
[1744812939388,1.26954,1575.5,1575.4,12.2228]
[1744812940494,1.26953,1575.5,1575.4,12.2228]
[1744812940792,5.0,1575.5,1574.8,42.07006]
[1744812940992,1.26986,1575.1,1575.0,3.0943]
[1744812941497,1.26986,1575.1,1575.0,9.4279]
[1744812942186,1.27936229,1575.2,1575.0,10.69782]
[1744812942387,1.27936229,1575.2,1575.1,9.4279]
[1744812942796,0.00952229,1575.2,1575.1,10.69776]
[1744812943197,0.00952229,1575.2,1575.1,13.90556]
[1744812943395,1.26962,1575.4,1575.3,1.26968]
[1744812943595,1.2697,1575.3,1575.2,12.3874]
[1744812944695,0.00952229,1575.4,1575.3,1.2697]
[1744812944901,0.00952229,1575.4,1575.3,13.4956]
[1744812946103,0.00952229,1575.4,1575.3,16.7034]
[1744812946695,1.27914229,1575.4,1575.3,16.7034]
[1744812946896,0.00952229,1575.4,1575.3,16.7034]
[1744812947898,0.00952229,1575.4,1575.3,21.7034]
[1744812953104,1.27914229,1575.4,1575.3,16.7034]
[1744812953400,1.27914229,1575.4,1575.3,15.4337]
[1744812953608,1.27914229,1575.4,1575.3,16.7034]
[1744812954106,1.26986,1575.1,1575.0,0.00952229]
[1744812954307,1.26986,1575.1,1575.0,2.96922229]
[1744812954506,1.26986,1575.1,1575.0,9.30282229]
[1744812956502,4.25784,1575.2,1575.0,9.30282229]
[1744812956803,4.25785,1575.2,1575.0,9.30282229]
[1744812957106,2.8853,1575.1,1575.0,2.96922229]
[1744812957499,4.15516,1575.1,1575.0,9.30282229]
[1744812960110,5.7445,1575.3,1575.0,9.30282229]
[1744812960409,7.36825229,1575.4,1575.2,1.26973]
[1744812960602,6.09862229,1575.4,1575.3,2.9355]
[1744812960807,6.09862229,1575.4,1575.3,4.2052]
[1744812961011,0.00952229,1575.4,1575.3,10.5388]
[1744812961310,0.00952229,1575.4,1575.3,13.7466]
[1744812962605,1.27914229,1575.4,1575.3,13.7466]
[1744812962908,1.27914229,1575.4,1575.3,6.3336]
[1744812963117,1.26986,1575.1,1575.0,1.27944229]
[1744812963412,1.26986,1575.1,1575.0,0.00952229]
[1744812963598,1.26986,1575.1,1575.0,6.34312229]
[1744812964003,3.1346,1575.2,1575.0,7.61306229]
[1744812964208,4.40444,1575.2,1575.1,6.3336]
[1744812964509,9.26436229,1575.4,1575.1,6.3336]
[1744812964510,2.88242229,1575.4,1575.2,1.26972]
[1744812964709,1.2697,1575.3,1575.2,7.60332]
[1744812964912,1.2697,1575.3,1575.2,1.26972]
[1744812965104,1.2697,1575.3,1575.2,6.3336]
[1744812965510,4.3532,1575.3,1575.2,6.3336]
[1744812967312,2.88242229,1575.4,1575.3,1.2697]
[1744812967612,1.27914229,1575.4,1575.3,7.6033]
[1744812967812,1.27914229,1575.4,1575.3,6.3336]
[1744812968001,0.00952229,1575.4,1575.3,7.6033]
[1744812968201,2.94022229,1575.4,1575.3,7.6033]
[1744812968406,4.20984229,1575.4,1575.3,6.3336]
[1744812968602,1.2697,1575.3,1575.2,4.17031]
[1744812968815,1.26978,1575.2,1575.1,0.6348]
[1744812969314,1.26978,1575.2,1575.1,6.9684]
[1744812969518,4.15978,1575.2,1575.1,6.9684]
[1744812969808,7.36758,1575.2,1575.1,0.6348]
[1744812970009,1.27018,1574.7,1574.6,8.45996876]
[1744812970412,6.27018,1574.7,1574.6,8.45996876]
[1744812970607,15.02308,1574.7,1574.6,8.45996876]
[1744812970807,1.27026,1574.6,1574.5,12.61287944]
[1744812971008,7.35296,1574.6,1574.5,12.61287944]
[1744812971310,12.46973871,1574.6,1574.5,11.32662944]
[1744812971518,12.46973871,1574.6,1574.5,7.85265944]
[1744812971717,12.46973871,1574.6,1574.5,6.48138944]
[1744812971907,12.46973871,1574.6,1574.5,5.20453944]
[1744812972108,12.46973871,1574.6,1574.5,3.82875944]
[1744812972715,1.27034,1574.5,1574.4,16.58400957]
[1744812973017,3.17647,1574.2,1573.8,3.0006]
[1744812973211,3.17647,1574.2,1573.4,91.19504]
[1744812973212,1.27074,1574.0,1573.9,6.3336]
[1744812973412,1.27083,1573.9,1573.6,1.27107]
[1744812973612,1.27083,1573.9,1573.7,6.3336]
[1744812973816,1.27083,1573.9,1573.7,9.5414]
[1744812974014,5.966,1574.1,1573.8,7.60447]
[1744812974317,7.2367,1574.1,1573.8,7.6045]
[1744812974517,7.2367,1574.1,1573.9,6.3336]
[1744812974816,7.2367,1574.1,1573.8,9.2971]
[1744812975019,7.2367,1574.1,1573.9,2.9635]
[1744812975317,7.2367,1574.1,1574.0,6.3336]
[1744812976211,2.8877,1574.2,1574.0,7.60432]
[1744812976407,4.15829,1574.2,1574.1,9.3916]
[1744812976612,4.15829,1574.2,1574.1,3.058]
[1744812976813,1.27059,1574.2,1574.1,9.3916]
[1744812977320,12.55021479,1574.4,1574.1,14.3916]
[1744812977513,9.54001479,1574.4,1574.2,10.66213]
[1744812977711,9.54001479,1574.4,1574.3,9.3916]
[1744812978017,6.33221479,1574.4,1574.3,9.3916]
[1744812978220,7.60263479,1574.4,1574.3,9.3916]
[1744812978618,1.27042,1574.4,1574.3,9.3916]
[1744812979117,1.27042,1574.4,1574.3,6.3336]
[1744812979520,7.17492,1574.4,1574.3,6.3336]
[1744812980018,4.17282,1574.4,1574.3,6.3336]
[1744812980215,3.2078,1574.5,1574.3,6.3336]
[1744812980519,4.47814,1574.5,1574.4,9.3719]
[1744812980818,4.47814,1574.5,1574.4,3.0383]
[1744812981022,7.38054,1574.5,1574.4,9.3719]
[1744812981716,7.38054,1574.5,1574.4,6.3336]
[1744812982720,1.2705,1574.3,1574.2,3.0383]
[1744812983124,1.2705,1574.3,1574.2,9.3719]
[1744812984020,4.47816,1574.5,1574.3,1.27049]
[1744812984221,4.47816,1574.5,1574.4,3.0663]
[1744812984525,4.47816,1574.5,1574.4,9.3999]
[1744812984821,7.46026,1574.5,1574.4,9.3999]
[1744812985321,3.17606,1574.4,1574.0,3.1529]
[1744812985519,1.27058,1574.2,1574.1,9.3672]
[1744812985923,8.17649,1574.2,1573.7,3.2078]
[1744812986225,1.27081,1574.0,1573.8,9.3672]
[1744812986422,1.27074,1574.0,1573.9,3.0336]
[1744812986612,1.27074,1574.0,1573.9,9.3672]
[1744812987416,6.1304,1574.1,1573.5,9.4048]
[1744812987623,1.27101,1573.7,1573.6,9.3672]
[1744812988012,4.20305229,1573.8,1573.6,10.63823]
[1744812988218,1.28045229,1573.8,1573.7,9.3672]
[1744812988418,1.28045229,1573.8,1573.7,3.0336]
[1744812988419,0.00952229,1573.8,1573.7,3.0336]
[1744812988623,1.28043229,1573.8,1573.7,9.3672]
[1744812990927,0.00952229,1573.8,1573.7,9.3672]
[1744812991128,1.28043229,1573.8,1573.7,9.3672]
[1744812992523,7.94982229,1573.8,1573.5,3.2078]
[1744812992831,1.27107,1573.6,1573.5,6.3336]
[1744812993128,3.2078,1573.7,1573.6,6.3336]
[1744812993129,4.21129,1573.7,1573.6,6.3336]
[1744812993319,4.21129,1573.7,1573.5,2.894]
[1744812993320,1.27107,1573.6,1573.5,2.894]
[1744812993519,4.21137,1573.6,1573.5,2.894]
[1744812993720,4.21137,1573.6,1573.5,9.2276]
[1744812993922,4.21137,1573.6,1573.5,6.3336]
[1744812994526,11.11817,1573.6,1573.2,0.6356]
[1744812994724,6.26810229,1573.8,1573.2,6.9692]
[1744812994725,1.27131,1573.3,1573.2,6.9692]
[1744812995131,1.27131,1573.3,1573.2,6.3336]
[1744812995328,4.47911,1573.3,1573.2,6.3336]
[1744812995631,7.40091,1573.3,1573.2,6.3336]
[1744812995828,3.17884,1573.1,1572.8,3.2078]
[1744812996029,0.63591,1572.8,1572.7,3.0927]
[1744812996333,1.2718,1572.7,1572.5,9.0593]
[1744812996630,1.2718,1572.7,1572.6,9.4263]
[1744812997324,3.17952,1572.7,1572.1,3.2078]
[1744812997526,1.27212,1572.3,1572.2,6.3336]
[1744812997733,1.27217,1572.3,1572.1,9.2087]
[1744812997933,6.08995,1572.6,1572.2,2.8751]
[1744812998129,3.2078,1572.8,1572.3,1.27208]
[1744812998324,2.8696,1572.8,1572.5,1.27188]
[1744812998527,1.2718,1572.7,1572.6,2.8751]
[1744812999126,1.2718,1572.7,1572.6,9.2087]
[1744813000028,1.272,1572.5,1572.2,1.27215]
[1744813000333,2.8696,1572.7,1572.3,9.2087]
[1744813000633,1.27196,1572.5,1572.4,2.8609]
[1744813000935,1.27196,1572.5,1572.4,9.1945]
[1744813001233,1.27195,1572.6,1572.4,9.1945]
[1744813001430,1.27194,1572.6,1572.5,6.3336]
[1744813001631,4.47955,1572.8,1572.5,12.4023]
[1744813001930,1.28117229,1572.9,1572.7,4.47956]
[1744813002125,1.28117229,1572.9,1572.8,5.9537]
[1744813002530,1.28117229,1572.9,1572.8,12.2873]
[1744813002930,1.2718,1572.7,1572.6,3.0724]
[1744813003233,1.2718,1572.7,1572.6,9.1945]
[1744813004235,1.27179,1572.8,1572.6,9.1945]
[1744813004431,1.27179,1572.8,1572.7,9.4269]
[1744813004631,1.27179,1572.8,1572.7,3.0933]
[1744813004935,1.27179,1572.8,1572.7,9.4269]
[1744813005238,1.27179,1572.8,1572.7,6.3336]
[1744813005429,4.16029,1572.8,1572.7,6.3336]
[1744813005631,1.27188,1572.6,1572.5,3.0933]
[1744813005934,1.27188,1572.6,1572.5,9.4269]
[1744813006834,1.27188,1572.6,1572.5,6.3336]
[1744813007437,1.27204,1572.4,1572.3,3.1002]
[1744813007734,1.27204,1572.4,1572.3,6.3336]
[1744813008133,4.34814,1572.4,1572.3,6.3336]
[1744813008534,3.0761,1572.4,1572.0,3.1002]
[1744813008730,1.2722,1572.2,1572.1,6.3336]
[1744813009235,4.3483,1572.2,1572.1,6.3336]
[1744813009637,8.0761,1572.2,1571.7,0.6362]
[1744813009937,1.27244,1571.9,1571.8,9.465]
[1744813012732,4.23871,1572.0,1571.8,9.465]
[1744813012939,0.00952229,1572.1,1571.9,13.93507]
[1744813013237,1.28182229,1572.1,1571.9,7.60147]
[1744813013437,1.28182229,1572.1,1572.0,6.3336]
[1744813013636,1.28182229,1572.1,1572.0,9.4549]
[1744813013937,0.00952229,1572.1,1572.0,9.4549]
[1744813014234,1.28180229,1572.1,1572.0,9.4549]
[1744813016038,1.28180229,1572.1,1572.0,6.3336]
[1744813020342,4.21410229,1572.1,1572.0,6.3336]
[1744813021947,1.27236,1572.0,1571.9,3.1176]
[1744813022147,4.16356,1572.0,1571.9,9.4512]
[1744813022647,1.27252,1571.8,1571.7,3.0067]
[1744813022843,1.27252,1571.8,1571.7,6.3336]
[1744813023241,1.27269,1571.6,1571.5,1e-05]
[1744813023441,1.27303,1571.2,1571.0,8.9612]
[1744813023644,1.27301,1571.2,1571.1,2.9496]
[1744813023948,1.27301,1571.2,1571.1,9.27391793]
[1744813024749,1.27301,1571.2,1571.1,6.3336]
[1744813025048,1.27333,1570.8,1570.7,2.8849]
[1744813025235,1.27341,1570.7,1570.6,2.8776]
[1744813025440,2.9986,1570.9,1570.6,9.2112]
[1744813025636,4.03227927,1571.2,1570.7,9.5414]
[1744813025840,3.21732229,1571.3,1570.9,3.2078]
[1744813026044,1.28246229,1571.3,1571.1,4.48088]
[1744813026243,0.00952229,1571.3,1571.1,4.48088]
[1744813026445,0.00952229,1571.3,1571.2,7.60661]
[1744813026642,1.27268,1571.7,1571.4,1.27279]
[1744813026845,1.27269,1571.6,1571.5,2.8849]
[1744813027042,6.17975,1571.9,1571.5,12.077]
[1744813027242,1.27256,1571.8,1571.7,3.2078]
[1744813027444,1.2726,1571.7,1571.6,6.3336]